[Event "Paracin Open 2022"]
[Site "Paracin"]
[Date "2022.07.08"]
[Round "1.19"]
[White "Nogerbek, Kazybek"]
[Black "Ciric, Pavle"]
[Result "1-0"]
[ECO "A28"]
[WhiteElo "2437"]
[BlackElo "2155"]
[Annotator "RC"]
[PlyCount "65"]
[EventDate "2022.07.08"]
[EventCountry "SRB"]
[SourceTitle "playchess.com"]
[Source "ChessBase"]
[SourceQuality "1"]
[TimeControl "5400+30"]

1. c4 {[%emt 0:00:05]} e5 {[%emt 0:01:03]} 2. Nc3 {[%emt 0:00:10]} Nf6 {[%emt 0:00:49]} 3. Nf3 {[%emt 0:00:15]} Nc6 {[%emt 0:06:04]} 4. e4 {[%emt 0:02:38]} d6 {[%emt 0:03:16]} 5. h3 {[%emt 0:01:58]} Be7 {[%emt 0:00:25]} 6. d4 {[%emt 0:00:09]} O-O {[%emt 0:08:05]} 7. d5 {[%emt 0:02:07]} Nb8 {[%emt 0:02:10]} 8. Be3 {[%emt 0:04:07]} c5 {[%emt 0:12:39]} 9. g4 {[%emt 0:01:41]} Na6 {[%emt 0:01:24]} 10. Rg1 {[%emt 0:05:06]} Nc7 {[%emt 0:02:39]} 11. Nd2 {[%emt 0:00:34]} a6 {[%emt 0:03:02]} 12. a4 {[%emt 0:04:12]} Nfe8 {[%emt 0:06:53]} 13. g5 {[%emt 0:04:17]} f5 {[%emt 0:08:47]} 14. exf5 {[%emt 0:00:56]} Bxf5 {[%emt 0:00:24]} 15. a5 {[%emt 0:02:19]} Rb8 {[%emt 0:02:16]} 16. h4 {[%emt 0:17:08]} b5 {[%emt 0:04:55]} 17. axb6 {[%emt 0:00:31]} Rxb6 {[%emt 0:00:03]} 18. b3 {[%emt 0:00:46]} Kh8 {[%emt 0:05:20]} 19. h5 {[%emt 0:01:46]} g6 {[%emt 0:03:22]} 20. h6 {[%emt 0:01:37]} a5 {[%emt 0:06:19]} 21. Rxa5 {[%emt 0:04:59]} Ra6 {[%emt 0:03:56]} 22. Qa1 {[%emt 0:04:37]} Qa8 {[%emt 0:00:04]} 23. Rxa6 {[%emt 0:00:41]} Nxa6 {[%emt 0:03:44]} 24. Nce4 {[%emt 0:02:07]} Nec7 {[%emt 0:00:30]} 25. Qb2 {[%emt 0:04:45]} Nb4 {[%emt 0:00:02]} 26. Bxc5 {[%emt 0:08:42]} Ncxd5 {[%emt 0:13:56]} 27. cxd5 {[%emt 0:00:38]} Qxd5 {[%emt 0:00:09]} 28. Bxb4 {[%emt 0:00:26]} Bxe4 {[%emt 0:00:03]} 29. Bc4 {[%emt 0:00:41]} Qb7 {[%emt 0:00:19]} 30. Bc3 {[%emt 0:00:23]} Rf5 {[%emt 0:01:54]} 31. Be6 {[%emt 0:00:33]} Rxf2 {[%emt 0:00:21]} 32. Kxf2 {[%emt 0:00:16]} Qb6+ {[%emt 0:00:06]} 33. Bd4 {[%emt 0:00:17]} 1-0

[Event "Paracin Open 2022"]
[Site "Paracin"]
[Date "2022.07.08"]
[Round "1.20"]
[White "Loskutova, Viktoriya"]
[Black "Zajic, Milan"]
[Result "1/2-1/2"]
[ECO "B33"]
[WhiteElo "2153"]
[BlackElo "2431"]
[Annotator "RC"]
[PlyCount "106"]
[EventDate "2022.07.08"]
[EventCountry "SRB"]
[SourceTitle "playchess.com"]
[Source "ChessBase"]
[SourceQuality "1"]
[TimeControl "5400+30"]

1. e4 {[%emt 0:00:01]} c5 {[%emt 0:00:02]} 2. Nf3 {[%emt 0:00:09]} Nc6 {[%emt 0:00:05]} 3. d4 {[%emt 0:00:04]} cxd4 {[%emt 0:00:07]} 4. Nxd4 {[%emt 0:00:03]} Nf6 {[%emt 0:00:13]} 5. Nc3 {[%emt 0:00:04]} e5 {[%emt 0:00:11]} 6. Ndb5 {[%emt 0:00:04]} d6 {[%emt 0:00:08]} 7. Bg5 {[%emt 0:00:03]} a6 {[%emt 0:00:10]} 8. Na3 {[%emt 0:00:04]} b5 {[%emt 0:00:09]} 9. Bxf6 {[%emt 0:00:04]} gxf6 {[%emt 0:00:08]} 10. Nd5 {[%emt 0:00:06]} f5 {[%emt 0:00:22]} 11. Bd3 {[%emt 0:00:05]} Be6 {[%emt 0:00:24]} 12. O-O {[%emt 0:00:11]} Bxd5 {[%emt 0:00:30]} 13. exd5 {[%emt 0:00:05]} Ne7 {[%emt 0:00:06]} 14. Re1 {[%emt 0:00:18]} Bg7 {[%emt 0:01:47]} 15. c3 {[%emt 0:00:06]} O-O {[%emt 0:01:45]} 16. Nc2 {[%emt 0:00:55]} Rc8 {[%emt 0:05:01]} 17. Nb4 {[%emt 0:19:56]} e4 {[%emt 0:03:49]} 18. Bf1 {[%emt 0:01:28]} Qb6 {[%emt 0:12:30]} 19. a4 {[%emt 0:05:20]} a5 {[%emt 0:04:03]} 20. Nc6 {[%emt 0:01:26]} Nxc6 {[%emt 0:00:37]} 21. dxc6 {[%emt 0:00:05]} bxa4 {[%emt 0:04:45]} 22. Qxa4 {[%emt 0:07:32]} Qxb2 {[%emt 0:35:02]} 23. Ba6 {[%emt 0:04:02]} Rc7 {[%emt 0:01:29]} 24. Rab1 {[%emt 0:15:43]} Qxc3 {[%emt 0:19:08]} 25. Rec1 {[%emt 0:10:02]} Qe5 {[%emt 0:03:02]} 26. Rb7 {[%emt 0:09:53]} Rfc8 {[%emt 0:05:50]} 27. Rb5 {[%emt 0:00:13]} Qf4 {[%emt 0:00:26]} 28. Rbb1 {[%emt 0:00:12]} Re8 {[%emt 0:01:02]} 29. Qxa5 {[%emt 0:01:02]} e3 {[%emt 0:01:20]} 30. fxe3 {[%emt 0:01:56]} Qxe3+ {[%emt 0:00:02]} 31. Kh1 {[%emt 0:00:25]} Be5 {[%emt 0:01:02]} 32. Bf1 {[%emt 0:06:38]} Rxc6 {[%emt 0:00:42]} 33. Qe1 {[%emt 0:10:25]} Qh6 {[%emt 0:00:30]} 34. g3 {[%emt 0:00:09]} Rxc1 {[%emt 0:00:15]} 35. Rxc1 {[%emt 0:01:09]} Kg7 {[%emt 0:00:42]} 36. Rc2 {[%emt 0:03:40]} Ra8 {[%emt 0:00:31]} 37. Qf2 {[%emt 0:00:48]} Qg5 {[%emt 0:00:20]} 38. Rc7 {[%emt 0:02:24]} Ra1 {[%emt 0:00:28]} 39. Kg2 {[%emt 0:00:13]} h5 {[%emt 0:00:41]} 40. Bc4 {[%emt 0:01:39]} d5 {[%emt 0:00:33]} 41. Rc5 {[%emt 0:00:06]} Rd1 {[%emt 0:00:30]} 42. Rxd5 {[%emt 0:00:15]} Rxd5 {[%emt 0:00:26]} 43. Bxd5 {[%emt 0:00:05]} h4 {[%emt 0:00:06]} 44. Bf3 {[%emt 0:01:13]} Qh6 {[%emt 0:00:54]} 45. gxh4 {[%emt 0:00:46]} Qd6 {[%emt 0:00:01]} 46. Kh3 {[%emt 0:00:28]} Qa3 {[%emt 0:00:33]} 47. h5 {[%emt 0:00:28]} Qc1 {[%emt 0:00:43]} 48. Kg2 {[%emt 0:00:49]} Qg5+ {[%emt 0:00:22]} 49. Kh3 {[%emt 0:00:54]} Kh6 {[%emt 0:00:35]} 50. Qb6+ {[%emt 0:00:20]} Kg7 {[%emt 0:00:27]} 51. Qf2 {[%emt 0:00:08]} Kh8 {[%emt 0:00:33]} 52. Qc5 {[%emt 0:01:06]} Qf6 {[%emt 0:00:37]} 53. Qc6 {[%emt 0:01:00]} Qxc6 {[%emt 0:00:40]} 1/2-1/2

[Event "Paracin Open 2022"]
[Site "Paracin"]
[Date "2022.07.09"]
[Round "2.1"]
[White "Anand, Batsukh"]
[Black "Predke, Alexandr"]
[Result "0-1"]
[ECO "E01"]
[WhiteElo "2312"]
[BlackElo "2688"]
[Annotator "TA"]
[PlyCount "80"]
[EventDate "2022.07.08"]
[EventCountry "SRB"]
[SourceTitle "playchess.com"]
[Source "ChessBase"]
[SourceQuality "1"]
[TimeControl "5400+30"]

{[%evp 9,80,0,16,14,25,12,-3,5,-2,-44,-33,-42,-43,-47,-39,-39,-54,-59,-53,-64,-63,-56,-50,-58,-56,-81,-58,-43,-42,-57,-56,-62,-71,-85,-82,-93,-86,-93,-83,-83,-81,-111,-88,-108,-81,-190,-202,-182,-185,-236,-212,-233,-197,-197,-191,-207,-207,-205,-196,-175,-181,-453,-455,-583,-570,-687,-664,-2984,-2513,-12837,-6043,-5321,-5147]} 1. d4 {[%emt 0:00:05]} Nf6 {[%emt 0:01:51]} 2. c4 {[%emt 0:00:41]} e6 {[%emt 0:00:05]} 3. Nf3 {[%emt 0:00:25]} d5 {[%emt 0:00:39]} 4. g3 {[%emt 0:00:35]} Bb4+ {[%emt 0:01:33]} 5. Bd2 {[%emt 0:00:15]} Bd6 {[%emt 0:00:02]} 6. Nc3 {[%emt 0:01:10] E01: Catalan: Early deviations.} O-O {[%emt 0:01:52] 6...0-0 scores better than 6...c6.} 7. Qc2 {[%emt 0:00:26]} Nc6 {[%emt 0:06:44]} 8. c5 {[%emt 0:12:44] The position is equal.} (8. e3 {is more complex.} dxc4 9. Bxc4 e5 10. dxe5 Bxe5 11. O-O) 8... Be7 {[%emt 0:00:44]} 9. Bg2 {[%emt 0:00:13] [#]} b6 $146 {[%emt 0:02:52]} ({Predecessor:} 9... Nd7 10. O-O f5 11. a3 Bf6 12. e3 Ne7 13. Ne1 g5 14. Nd3 Rf7 15. b4 Nf8 {1-0 (64) Bryakin,M (2480)-Sahithi Varshini,M (2216) Novi Sad 2022}) 10. cxb6 {[%emt 0:01:56]} axb6 {[%emt 0:08:01]} 11. O-O {[%emt 0:04:17]} Nb4 {[%emt 0:00:43]} 12. Qd1 {[%emt 0:15:25]} c5 {[%emt 0:00:54]} 13. Re1 {[%emt 0:01:06]} Bb7 {[%emt 0:03:42]} 14. a3 {[%emt 0:05:22]} Nc6 {[%emt 0:00:19]} 15. dxc5 {[%emt 0:00:58]} bxc5 {[%emt 0:16:33]} 16. e4 {[%emt 0:01:42]} d4 {[%emt 0:00:04]} 17. Nb5 {[%emt 0:00:49]} Nd7 {[%emt 0:01:28]} 18. b3 {[%emt 0:02:54]} Na7 {[%emt 0:17:56]} 19. Nxa7 {[%emt 0:13:36]} Rxa7 {[%emt 0:00:04]} 20. a4 {[%emt 0:01:07]} Qa8 {[%emt 0:00:09]} 21. Qc2 {[%emt 0:00:20]} Rc8 {[%emt 0:00:03]} 22. Bf1 {[%emt 0:01:18]} h6 {[%emt 0:02:13]} 23. Bb5 {[%emt 0:01:21]} Ba6 {[%emt 0:04:02]} 24. Bxa6 {[%emt 0:01:46]} Rxa6 {[%emt 0:00:03]} 25. Rec1 {[%emt 0:06:51]} e5 {[%emt 0:01:16][%cal Oc5c4]} 26. Bb4 {[%emt 0:04:39]} Bf6 {[%emt 0:09:48]} 27. Bd2 {[%emt 0:08:14] [#]} (27. h4 $17) 27... c4 $1 $19 {[%emt 0:01:06]} 28. bxc4 {[%emt 0:05:53]} Nc5 {[%emt 0:00:02][%csl LRa4,LRe4]} 29. Bb4 {[%emt 0:00:18]} (29. Re1 $142) 29... Nxe4 {[%emt 0:02:49]} ({Stronger than} 29... Qxe4 30. Qxe4 Nxe4 31. Re1 $15) 30. Re1 {[%emt 0:00:23] [#]} Nxg3 {[%emt 0:00:15][%mdl 512]} 31. hxg3 {[%emt 0:03:28]} Qxf3 {[%emt 0:00:04]} 32. Ra3 {[%emt 0:00:24] Prevents d3.} Qb7 {[%emt 0:00:56]} 33. Bd2 {[%emt 0:02:28]} Rac6 {[%emt 0:02:08]} 34. a5 {[%emt 0:00:52]} Rxc4 {[%emt 0:00:05]} 35. a6 $2 {[%emt 0:00:15]} (35. Qd3) 35... Qxa6 {[%emt 0:00:54] Black is clearly winning.} ({Less strong is} 35... Rxc2 36. axb7 R2c7 37. bxc8=N Rxc8 38. Kg2 $18) 36. Rxa6 {[%emt 0:00:57]} Rxc2 {[%emt 0:00:05]} 37. Bxh6 {[%emt 0:00:11]} Kh7 {[%emt 0:01:46]} 38. f4 {[%emt 0:00:48]} Rc1 {[%emt 0:00:33]} 39. Rxc1 {[%emt 0:00:23]} Rxc1+ {[%emt 0:00:02]} 40. Kf2 {[%emt 0:00:05]} e4 {[%emt 0:00:16] Weighted Error Value: White=0.67/Black=0.05 (flawless)} 0-1

[Event "Paracin Open 2022"]
[Site "Paracin"]
[Date "2022.07.09"]
[Round "2.2"]
[White "Praggnanandhaa R"]
[Black "Yordanov, Lachezar"]
[Result "1-0"]
[ECO "D02"]
[WhiteElo "2648"]
[BlackElo "2316"]
[Annotator "TA"]
[PlyCount "69"]
[EventDate "2022.07.08"]
[EventCountry "SRB"]
[SourceTitle "playchess.com"]
[Source "ChessBase"]
[SourceQuality "1"]
[TimeControl "5400+30"]

{[%evp 11,69,0,5,12,27,14,12,10,16,0,2,2,7,6,7,5,10,9,0,2,26,24,33,47,37,31,44,41,36,48,47,25,53,16,23,23,34,31,60,59,49,66,59,37,62,64,146,144,131,132,152,62,150,141,276,264,396,377,378,356]} 1. d4 {[%emt 0:00:55]} Nf6 {[%emt 0:00:15]} 2. Nf3 {[%emt 0:01:01]} e6 {[%emt 0:00:09]} 3. Bf4 {[%emt 0:00:19]} d5 {[%emt 0:01:24]} 4. e3 {[%emt 0:00:45]} c5 {[%emt 0:00:14]} 5. c3 {[%emt 0:00:16]} Nc6 {[%emt 0:00:25]} 6. Nbd2 {[%emt 0:00:23]} cxd4 {[%emt 0:00:13] is cutting edge theory.} 7. exd4 {[%emt 0:00:27] D02: 1 d4 d5 2 Nf3 sidelines, including 2...Nf6 3 g3 and 2...Nf6 3 Bf4.} Nh5 {[%emt 0:00:08]} 8. Be3 {[%emt 0:00:56]} Bd6 {[%emt 0:00:10]} 9. Ne5 {[%emt 0:01:10] The position is equal.} g6 {[%emt 0:00:43]} 10. Nd3 {[%emt 0:00:44]} O-O {[%emt 0:01:18]} 11. g3 {[%emt 0:00:44]} b6 {[%emt 0:17:44]} 12. Bg2 {[%emt 0:00:33]} Ba6 {[%emt 0:00:53]} 13. Nf3 {[%emt 0:01:34]} Ng7 {[%emt 0:07:55]} 14. O-O {[%emt 0:08:42]} Nf5 {[%emt 0:02:56]} 15. Re1 {[%emt 0:14:02] [#]} Re8 $146 {[%emt 0:10:51]} ({Predecessor:} 15... Nce7 16. Bf4 Bxd3 17. Bxd6 Nxd6 18. Qxd3 b5 19. h4 Rb8 20. a3 h5 21. Ng5 a5 {0-1 (57) Mouhamad,J (2293)-Maurizzi,M (2404) Paris 2019}) 16. Bc1 {[%emt 0:10:59]} Bf8 {[%emt 0:14:05]} 17. h4 {[%emt 0:06:21][%cal Bh2h4,Bh4h5][%mdl 32]} Bg7 {[%emt 0:06:29]} 18. Nde5 {[%emt 0:07:55]} Bb7 {[%emt 0:05:21]} 19. Nxc6 {[%emt 0:03:35]} Bxc6 {[%emt 0:00:06]} 20. h5 {[%emt 0:00:10]} Rc8 {[%emt 0:02:41]} 21. Ne5 {[%emt 0:05:19]} Bb7 {[%emt 0:00:36]} 22. a4 {[%emt 0:03:04]} f6 {[%emt 0:01:38]} 23. Nd3 {[%emt 0:04:23]} g5 {[%emt 0:02:19] Prevents Nf4.} 24. a5 {[%emt 0:01:41]} Qd7 {[%emt 0:01:15]} 25. axb6 {[%emt 0:03:03]} axb6 {[%emt 0:00:08]} 26. Qb3 {[%emt 0:00:45]} Qc6 {[%emt 0:01:50]} 27. Ra7 {[%emt 0:01:24][%cal Oa7b7]} Kh8 {[%emt 0:03:35]} 28. Qa4 {[%emt 0:06:25]} h6 {[%emt 0:05:15] [#]} (28... Qxa4 $14 29. Rxa4 Rc7) 29. Qxc6 $1 $16 {[%emt 0:01:05]} Bxc6 {[%emt 0:00:06]} 30. Nb4 {[%emt 0:02:22]} Ba8 {[%emt 0:00:16]} 31. Na6 {[%emt 0:03:21] White is more active.} (31. Ra6 $16) 31... Bc6 {[%emt 0:01:10]} (31... Nd6 $1 $14) 32. Bh3 $36 {[%emt 0:00:59][%mdl 2048] Black is under strong pressure.} Nd6 {[%emt 0:06:24] [#]} (32... Bf8 $16 {is a better defense.}) 33. Nc7 $1 $18 {[%emt 0:01:44]} ({Worse is} 33. Rxe6 Rxe6 34. Bxe6 Re8 $11) ({And not} 33. Bxe6 Nb5 34. Rf7 Nd6 $11) 33... e5 {[%emt 0:03:09]} (33... Nb5 $142) 34. Bxc8 {[%emt 0:01:23]} ({Don't do} 34. Nxe8 Rxe8 35. b3 Rd8 $18) 34... Rxc8 {[%emt 0:00:26]} 35. Ne6 {[%emt 0:00:07] Weighted Error Value: White=0.05 (flawless) /Black=0.23 (precise)} 1-0

[Event "Paracin Open 2022"]
[Site "Paracin"]
[Date "2022.07.09"]
[Round "2.3"]
[White "Milosevic, Milos"]
[Black "Petrov, Nikita"]
[Result "1/2-1/2"]
[ECO "D00"]
[WhiteElo "2288"]
[BlackElo "2558"]
[Annotator "TA"]
[PlyCount "66"]
[EventDate "2022.07.08"]
[EventCountry "SRB"]
[SourceTitle "playchess.com"]
[Source "ChessBase"]
[SourceQuality "1"]
[TimeControl "5400+30"]

{[%evp 9,66,-29,-27,-37,-29,-47,-43,-43,-37,-42,-20,-16,-10,-22,-15,-15,-10,-29,0,-16,0,-51,-30,-27,-13,-37,-27,-42,-33,-66,-8,-60,-52,-62,-59,-68,-56,-61,-64,-103,-12,-11,-17,-13,-8,-8,-10,-30,-22,-120,-8,-10,-8,-8,-10,-7,-7,-6,-2]} 1. d4 {[%emt 0:01:48]} Nf6 {[%emt 0:00:24]} 2. Nc3 {[%emt 0:00:04]} d5 {[%emt 0:00:25]} 3. Bf4 {[%emt 0:00:05]} e6 {[%emt 0:02:47]} 4. e3 {[%emt 0:00:09]} Bb4 {[%emt 0:01:26]} 5. Nge2 {[%emt 0:02:34]} O-O {[%emt 0:00:44]} 6. a3 {[%emt 0:00:03] D00: 1 d4 d5: Unusual lines.} Be7 {[%emt 0:00:58]} 7. Ng3 {[%emt 0:00:24]} c5 {[%emt 0:04:51]} 8. dxc5 {[%emt 0:00:05] Black is slightly better.} Bxc5 {[%emt 0:01:01]} 9. Bd3 {[%emt 0:00:08] [#]} Nbd7 $146 {[%emt 0:14:18]} ({Predecessor:} 9... Nc6 10. O-O h6 11. e4 e5 12. Bd2 Ng4 13. h3 Nxf2 14. Rxf2 Qh4 15. Nh1 f5 16. exd5 {1-0 (56) Indjic,A (2623)-Kantor,G (2575) Warsaw 2021}) 10. e4 {[%emt 0:00:43]} d4 {[%emt 0:04:40]} (10... Qb6 11. O-O $14) 11. Nce2 {[%emt 0:00:18]} e5 {[%emt 0:01:40]} 12. Bd2 {[%emt 0:00:02]} Re8 {[%emt 0:05:43]} 13. O-O {[%emt 0:00:29]} Bf8 {[%emt 0:03:33]} 14. b4 {[%emt 0:00:16]} a5 {[%emt 0:03:17]} 15. bxa5 {[%emt 0:01:24]} (15. h3 $11) 15... Nc5 {[%emt 0:00:23]} 16. Nc1 {[%emt 0:01:03]} Be6 {[%emt 0:06:09][%mdl 1024] Black has compensation.} 17. h3 {[%emt 0:03:18]} Qc7 {[%emt 0:01:10]} 18. Bb5 {[%emt 0:01:58]} Rec8 {[%emt 0:03:38]} ({Much weaker is} 18... Ncxe4 19. Nxe4 Nxe4 20. Bxe8 Rxe8 21. Bb4 $11) ({Reject} 18... Nfxe4 19. Nxe4 Nxe4 20. Bxe8 Rxe8 21. Bb4 $11) 19. Qf3 {[%emt 0:01:20]} Ncd7 {[%emt 0:02:40]} (19... h5 $15 20. Bg5 Nh7) 20. Bd3 {[%emt 0:01:39]} (20. Nd3 $11) 20... b6 $15 {[%emt 0:01:08]} 21. axb6 {[%emt 0:00:42]} Nxb6 {[%emt 0:00:17]} 22. Nf5 {[%emt 0:01:19]} Nc4 {[%emt 0:03:24]} 23. Bg5 {[%emt 0:00:47][%cal Of5g7] [#] Threatens to win with Nxg7!} Nd7 {[%emt 0:00:57] White must now prevent ...h6.} 24. Ne2 {[%emt 0:07:31]} Nxa3 {[%emt 0:05:22]} (24... f6 $17 25. Bc1 Nc5) 25. Ne7+ {[%emt 0:13:00]} Bxe7 {[%emt 0:00:04]} 26. Bxe7 {[%emt 0:00:02]} Nc5 {[%emt 0:07:06]} ({Much worse is} 26... Nxc2 27. Rac1 Nb6 28. Bh4 $15) 27. Bxc5 {[%emt 0:02:51]} Qxc5 {[%emt 0:00:04]} 28. Qh5 {[%emt 0:05:54]} f6 {[%emt 0:03:48]} 29. f4 {[%emt 0:03:50]} (29. Rfc1 $11) 29... Nc4 {[%emt 0:01:55]} ({Black should try} 29... Nxc2 $17 30. Rxa8 Rxa8) 30. fxe5 $11 {[%emt 0:03:35] The position is equal.} Qxe5 {[%emt 0:04:09]} 31. Qxe5 {[%emt 0:06:08]} fxe5 {[%emt 0:00:06]} 32. Rxa8 {[%emt 0:01:46]} Rxa8 {[%emt 0:00:04]} 33. Rb1 {[%emt 0:04:19]} Rc8 {[%emt 0:05:35] Weighted Error Value: White=0.21 (precise) /Black=0.22 (precise)} 1/2-1/2

[Event "Paracin Open 2022"]
[Site "Paracin"]
[Date "2022.07.09"]
[Round "2.4"]
[White "Makarian, Rudik"]
[Black "Todorovic, Nenad I"]
[Result "1-0"]
[ECO "E43"]
[WhiteElo "2533"]
[BlackElo "2302"]
[Annotator "TA"]
[PlyCount "55"]
[EventDate "2022.07.08"]
[EventCountry "SRB"]
[SourceTitle "playchess.com"]
[Source "ChessBase"]
[SourceQuality "1"]
[TimeControl "5400+30"]

{[%evp 13,55,3,19,17,23,0,8,8,33,31,38,20,36,17,28,8,22,24,37,36,34,5,121,119,108,93,171,168,177,164,165,166,165,171,162,167,167,169,270,264,285,288,263,254]} 1. d4 {[%emt 0:00:03]} Nf6 {[%emt 1:31:00]} 2. c4 {[%emt 0:00:02]} e6 {[%emt 0:00:00]} 3. Nf3 {[%emt 0:00:02]} b6 {[%emt 0:00:00]} 4. Nc3 {[%emt 0:00:03]} Bb4 {[%emt 0:00:00]} 5. e3 {[%emt 0:00:05]} Bb7 {[%emt 0:00:00]} 6. Bd3 {[%emt 0:00:11]} O-O {[%emt 0:00:00]} 7. Bd2 {[%emt 0:00:01]} c5 {[%emt 0:00:00]} 8. a3 {[%emt 0:00:07] E43: Nimzo-Indian: Rubinstein: 4...b6.} cxd4 {[%emt 0:00:00]} 9. exd4 {[%emt 0:02:31]} Be7 {[%emt 0:00:00]} 10. Qe2 {[%emt 0:00:04] The position is equal.} d6 {[%emt 0:00:00]} 11. O-O {[%emt 0:19:06]} Nbd7 {[%emt 0:00:00]} 12. b4 {[%emt 0:03:25]} Re8 {[%emt 0:00:00][%cal Oe6e5] [#]} 13. Rfe1 $146 {[%emt 0:06:20]} ({Predecessor:} 13. Ng5 Bf8 14. f4 g6 15. Be3 a6 16. h3 Qc7 17. Qf2 b5 18. c5 Rad8 19. Rad1 {½-½ (31) Weissenbeck,M (2200)-Lorincz,I (2360) Budapest 1997}) 13... Bf8 {[%emt 0:00:00]} 14. Bg5 {[%emt 0:02:33]} Qc7 {[%emt 0:00:00]} 15. Rac1 {[%emt 0:01:46]} Rac8 {[%emt 0:00:00]} 16. Qd1 {[%emt 0:00:42]} Qb8 {[%emt 0:00:00]} 17. d5 {[%emt 0:10:48]} e5 {[%emt 0:00:00]} (17... exd5 $11 {remains equal.} 18. Rxe8 Rxe8) 18. Nd2 $1 $16 {[%emt 0:18:00] White is much more active.} g6 {[%emt 0:00:00]} 19. Bc2 {[%emt 0:00:05]} Bg7 {[%emt 0:00:00]} (19... b5 $16 {is a better defense.}) 20. Ba4 $18 {[%emt 0:00:43]} Rf8 {[%emt 0:00:00]} 21. Nce4 {[%emt 0:01:15] And now Qf3 would win.} Qc7 {[%emt 0:00:00]} 22. Bxd7 {[%emt 0:04:53]} Nxd7 {[%emt 0:00:00]} 23. Be7 {[%emt 0:00:09][%csl LRd6,LRf8][%cal Bg5e7,Be7d6,Bd6c7][%mdl 32]} Rfe8 {[%emt 0:00:00]} 24. Bxd6 {[%emt 0:00:25]} Qd8 {[%emt 0:00:00]} 25. Qb3 {[%emt 0:02:11] Threatens to win with c5.} f5 {[%emt 0:00:00] [#]} (25... Bh6 {was worth a try.}) 26. c5 $1 {[%emt 0:00:42][%cal Bc4c5,Bc5c6][%mdl 32] c6 is the strong threat. White has a decisive advantage.} fxe4 {[%emt 0:00:00]} (26... Nf6 27. Nxf6+) 27. c6 {[%emt 0:01:32]} Ba8 {[%emt 0:00:00] [#] Hoping for ...Nf6.} 28. Bc7 $1 {[%emt 0:01:23][%mdl 576] Clearance.  Weighted Error Value: White=0.05 (flawless) /Black=0.23 (precise)} 1-0